bitfinex-derivatives/quotes_ETHF0:USTF0_20251031
["timestamp","ask_amount","ask_price","bid_price","bid_amount"]
[1761935622305,0.50335679,3819.5,3819.4,3.2078]
[1761935622799,0.50335679,3819.5,3819.3,9.363]
[1761935623601,0.50335679,3819.5,3819.2,9.358]
[1761935623602,0.3592,3819.3,3819.2,9.358]
[1761935624398,0.2011,3818.5,3818.2,0.47169]
[1761935624600,0.2011,3817.5,3817.3,0.4718]
[1761935624906,0.2011,3818.0,3817.3,9.358]
[1761935625206,0.2011,3818.0,3817.6,3.2078]
[1761935625503,0.2011,3818.0,3817.8,0.47174]
[1761935625698,0.2011,3818.0,3817.6,3.20968417]
[1761935625699,3.4089,3818.5,3817.9,9.373]
[1761935626607,0.3592,3818.0,3817.9,9.373]
[1761935626902,3.4089,3818.5,3817.9,9.373]
[1761935627298,0.57674412,3818.4,3817.9,9.373]
[1761935627493,3.4089,3818.5,3817.9,9.373]
[1761935627694,0.57674434,3818.4,3817.9,9.373]
[1761935627901,0.57674434,3818.3,3817.9,9.373]
[1761935628106,3.4089,3818.5,3817.9,9.373]
[1761935628406,0.58884519,3818.4,3817.9,9.373]
[1761935628604,0.3592,3818.0,3817.9,9.373]
[1761935629309,0.94832356,3818.0,3817.9,9.373]
[1761935629701,3.4089,3818.5,3817.9,9.373]
[1761935630006,0.58914371,3818.4,3817.9,9.373]
[1761935630204,0.58914371,3818.3,3817.9,9.84473]
[1761935630408,0.58914371,3818.2,3818.1,0.47171]
[1761935630604,0.2011,3818.5,3818.1,0.47171]
[1761935630906,0.58904614,3818.4,3818.1,0.47171]
[1761935631108,0.2011,3818.5,3818.0,3.2078]
[1761935631109,0.58904614,3818.3,3818.0,3.2078]
[1761935631303,0.3592,3818.1,3818.0,3.2078]
[1761935631898,0.2011,3818.5,3818.0,3.2078]
[1761935632095,0.3592,3818.1,3818.0,3.2078]
[1761935632504,0.2011,3818.5,3818.0,3.2078]
[1761935632703,0.58887421,3818.4,3818.0,3.2078]
[1761935632905,0.58887421,3818.3,3818.0,3.2078]
[1761935633109,0.5603,3818.0,3817.9,9.373]
[1761935633410,0.3592,3817.7,3817.6,3.20968417]
[1761935633605,0.3592,3817.7,3817.6,12.57468417]
[1761935635703,0.3592,3817.7,3817.6,3.20968417]
[1761935635906,0.3592,3817.7,3817.6,12.57568417]
[1761935637606,0.94754563,3817.7,3817.6,12.57568417]
[1761935638317,0.3592,3817.7,3817.6,12.57568417]
[1761935639307,0.2011,3818.0,3817.6,12.57568417]
[1761935639508,0.58818379,3817.9,3817.6,12.57568417]
[1761935639714,0.3592,3817.7,3817.6,3.20968417]
[1761935639915,0.94734203,3817.7,3817.6,3.20968417]
[1761935641717,0.2011,3818.0,3817.6,3.20968417]
[1761935641907,0.58810986,3817.9,3817.6,3.20968417]
[1761935642113,0.58810986,3817.8,3817.6,3.20968417]
[1761935642316,0.2011,3818.0,3817.6,3.20968417]
[1761935642616,0.3592,3817.7,3817.6,3.20968417]
[1761935643212,0.94709048,3817.7,3817.6,0.00188417]
[1761935643716,0.3592,3817.1,3817.0,0.649]
[1761935643910,4.15489048,3817.1,3817.0,0.649]
[1761935644820,4.15489048,3817.1,3817.0,0.65129297]
[1761935645916,4.15489048,3817.1,3815.2,0.21151191]
[1761935645917,0.3592,3814.8,3814.0,3.62787559]
[1761935646415,0.3592,3814.8,3814.1,9.385]
[1761935646812,0.36225648,3814.8,3814.7,0.02825644]
[1761935647205,0.2011,3814.2,3813.5,3.2078]
[1761935647521,0.2011,3814.2,3813.6,0.47226]
[1761935647718,3.2078,3814.4,3814.3,0.47218]
[1761935648020,0.00305648,3814.8,3814.5,0.47215]
[1761935648217,0.00305648,3814.8,3814.6,0.47214]
[1761935648421,0.00305648,3814.8,3814.6,3.67994]
[1761935649713,0.00305648,3814.8,3814.5,0.00190253]
[1761935649714,0.20415648,3814.8,3814.5,0.00190253]
[1761935650515,0.3592,3814.6,3814.5,0.00190253]
[1761935652014,0.3592,3814.6,3813.4,9.384]
[1761935652015,0.21,3813.6,3813.4,9.85629]
[1761935652723,0.21,3814.2,3813.4,9.384]
[1761935652928,0.21,3814.2,3813.7,3.2078]
[1761935653228,0.21,3814.2,3813.9,0.47222]
[1761935653732,0.21,3814.2,3814.0,0.47221]
[1761935654228,0.21,3814.2,3813.8,0.47223]
[1761935654432,0.21,3814.2,3813.7,0.47225]
[1761935654631,0.21,3814.2,3813.9,0.47223]
[1761935654826,0.21,3814.2,3813.7,0.47225]
[1761935655023,0.21,3814.2,3813.4,9.38593157]
[1761935655333,0.21,3814.2,3813.4,9.85822157]
[1761935655521,0.21,3813.6,3813.4,9.38593157]
[1761935655725,0.21,3813.6,3813.5,9.86798]
[1761935656433,0.6822,3814.2,3813.5,9.38]
[1761935656632,0.21,3814.2,3813.9,0.47222]
[1761935656932,0.6822,3814.2,3813.7,0.47224]
[1761935657132,0.6822,3814.2,3813.5,9.38]
[1761935657329,0.47221,3814.1,3813.5,9.38]
[1761935657729,0.21,3814.2,3814.1,0.4879]
[1761935657934,0.21,3814.2,3814.1,0.0157]
[1761935658233,0.21,3814.2,3813.9,0.47222]
[1761935658633,0.21,3814.5,3814.2,0.47218]
[1761935658832,0.20415648,3814.8,3814.5,0.47215]
[1761935659026,0.216,3814.5,3814.3,3.2078]
[1761935659226,0.216,3814.5,3814.0,9.375]
[1761935659433,0.4722,3814.1,3814.0,9.375]
[1761935659822,0.68822,3814.0,3813.9,9.377]
[1761935660022,0.216,3814.0,3813.4,0.00193157]
[1761935660241,0.47223,3813.9,3813.6,0.47226]
[1761935660433,0.47223,3813.9,3813.5,9.84827]
[1761935660742,3.4238,3814.0,3813.5,9.376]
[1761935660933,0.47225,3813.7,3813.5,9.376]
[1761935661137,3.4238,3814.0,3813.5,9.84827]
[1761935661434,0.47226,3813.6,3813.5,9.376]
[1761935661937,0.47226,3813.6,3813.4,0.00193157]
[1761935661938,1.04958,3813.5,3813.4,0.00193157]
[1761935662440,0.68828,3813.5,3813.4,0.00193157]
[1761935662741,0.68828,3813.5,3813.4,0.47422157]
[1761935662742,0.216,3813.5,3813.4,0.47422157]
[1761935662929,0.216,3814.0,3813.6,0.47226]
[1761935663129,0.47225,3813.7,3813.5,0.47227]
[1761935663439,0.68828,3813.5,3813.4,0.00193157]
[1761935663936,1.04958,3813.5,3813.4,0.00193157]
[1761935664637,1.04958,3813.5,3813.4,0.47422157]
[1761935664834,1.04958,3813.5,3813.4,0.00193157]
[1761935665032,3.2078,3813.7,3813.4,0.00193157]
[1761935665231,0.68823,3814.0,3813.8,0.47224]
[1761935665539,0.47223,3813.9,3813.7,0.47225]
[1761935665741,0.68822,3814.0,3813.8,0.47224]
[1761935665940,1.38448648,3814.8,3813.6,1.18064]
[1761935665941,3.4238,3814.5,3813.6,1.18064]
[1761935666134,0.47217,3814.4,3813.7,1.18064]
[1761935666447,3.4238,3814.5,3813.7,1.18064]
[1761935666448,3.4238,3814.5,3814.4,0.47217]
[1761935666747,0.216,3814.5,3814.2,9.85218]
[1761935666939,0.216,3814.5,3814.2,9.38]
[1761935667140,3.4238,3814.5,3814.4,0.47217]
[1761935667336,0.216,3814.5,3814.4,0.47217]
[1761935667636,0.67628648,3814.8,3814.2,9.38]
[1761935667637,0.67628648,3814.8,3814.5,0.47215]
[1761935668032,0.20415648,3814.8,3814.2,10.56047]
[1761935668228,0.67627648,3814.8,3814.3,0.47217]
[1761935668433,0.67627648,3814.8,3814.6,0.47214]
[1761935668633,0.20415648,3814.8,3814.6,0.47214]
[1761935669531,0.20415648,3814.8,3814.7,0.47213]
[1761935669731,0.00305648,3814.8,3814.6,0.47214]
[1761935671240,0.00305648,3814.8,3814.2,9.38]
[1761935671442,0.47215,3814.6,3814.4,0.47216]
[1761935671741,0.47214,3814.6,3814.4,0.47216]
[1761935672240,0.47213,3814.7,3814.5,9.369]
[1761935672947,0.3613,3814.6,3814.5,9.369]
[1761935673141,0.95134843,3814.6,3814.5,9.369]
[1761935674147,0.8335,3814.1,3814.0,0.42007559]
[1761935674453,1.42354843,3814.1,3814.0,0.42007559]
[1761935674745,1.42354843,3814.1,3813.4,0.00193157]
[1761935674746,0.5773,3813.5,3813.4,0.00193157]
[1761935675047,1.16734843,3813.5,3813.4,0.00193157]
[1761935678646,0.80604843,3813.5,3813.4,0.00193157]
[1761935679153,1.16734843,3813.5,3813.4,0.00193157]
[1761935680048,0.80604843,3813.5,3813.4,0.00193157]
[1761935681853,0.59004843,3813.5,3813.4,3.20973157]
[1761935682056,0.68822,3814.0,3813.4,3.20973157]
[1761935682351,0.67248,3813.5,3813.4,0.00193157]
[1761935682546,4.81044945,3813.5,3813.4,0.00193157]
[1761935682753,0.2002,3813.0,3812.8,2.63236]
[1761935682954,0.2002,3813.0,3812.8,2.16]
[1761935683146,0.67254,3813.0,3812.8,2.63236]
[1761935683854,0.5392,3813.0,3812.9,0.47235]
[1761935684151,0.2002,3813.0,3812.9,0.47235]
[1761935684339,0.67254,3813.0,3812.9,0.47235]
[1761935684537,0.2002,3813.0,3812.9,0.47235]
[1761935684749,3.408,3813.5,3812.8,2.16271068]
[1761935684950,0.59100223,3813.4,3812.9,1.18089]
[1761935685250,0.59100223,3813.3,3813.2,0.47231]
[1761935685449,3.408,3813.5,3813.2,0.47231]
[1761935685755,3.2078,3813.9,3813.7,0.47225]
[1761935685942,0.59109784,3813.8,3813.3,9.352]
[1761935686142,1.06335784,3813.7,3813.3,9.352]
[1761935686339,3.68004,3813.9,3813.7,0.47224]
[1761935686540,0.59109226,3813.8,3813.7,0.47224]
[1761935686851,0.216,3814.5,3813.7,1.18064]
[1761935687044,0.59101746,3814.4,3813.5,3.2078]
[1761935687251,0.2002,3814.0,3813.8,0.47224]
[1761935687452,0.2002,3814.0,3813.5,0.47227]
[1761935687653,0.2002,3813.5,3813.4,0.47229]
[1761935687949,1.01148,3813.5,3813.4,0.47229]
[1761935688648,0.5392,3813.5,3813.3,9.351]
[1761935688851,0.81129,3813.4,3813.3,9.351]
[1761935689147,1.40190013,3813.4,3813.3,9.351]
[1761935689749,0.81133,3813.1,3813.0,3.2078]
[1761935689957,1.40194013,3813.1,3813.0,3.2078]
[1761935691351,0.67248,3813.5,3813.3,0.4723]
[1761935691559,1.06261614,3813.4,3813.1,0.47233]
[1761935691757,0.59032614,3813.3,3813.2,0.47231]
[1761935692456,0.59032614,3813.3,3813.2,9.82831]
[1761935693355,0.5392,3813.5,3813.4,0.47229]
[1761935693551,0.47232,3813.2,3813.0,3.2078]
[1761935693852,0.47232,3813.2,3813.1,0.47233]
[1761935694152,0.2002,3813.5,3813.0,3.2078]
[1761935694153,0.4723,3813.4,3813.0,3.2078]
[1761935694349,0.2002,3813.5,3813.0,3.2078]
[1761935694554,0.67248,3813.5,3813.3,0.4723]
[1761935694759,0.47229,3813.4,3813.3,9.8213]
[1761935694955,0.47229,3813.4,3813.3,9.349]
[1761935695156,0.67248,3813.5,3813.4,0.47229]
[1761935695752,0.2002,3813.5,3813.4,0.47229]
[1761935696961,0.47229,3813.4,3813.3,9.349]
[1761935697663,0.47229,3813.4,3813.3,9.8213]
[1761935697957,0.67248,3813.5,3813.3,9.349]
[1761935698359,0.2002,3813.5,3813.4,0.47229]
[1761935698560,3.2078,3813.9,3813.6,0.47226]
[1761935698758,0.47224,3813.8,3813.7,9.339]
[1761935698949,0.81124,3813.8,3813.7,9.339]
[1761935699552,0.47231,3813.2,3813.1,0.47233]
[1761935699756,0.47231,3813.2,3813.1,9.80833]
[1761935700157,0.47231,3813.2,3813.1,9.336]
[1761935700657,0.47231,3813.2,3813.1,9.80833]
[1761935701467,3.2078,3813.9,3813.1,9.80833]
[1761935701468,3.2078,3813.9,3813.6,0.47226]
[1761935701757,0.47224,3813.8,3813.7,9.333]
[1761935701963,0.67248,3813.5,3813.4,0.47228]
[1761935702159,3.2078,3813.9,3813.7,0.47224]
[1761935702364,3.2078,3813.9,3813.4,9.331]
[1761935702365,0.47223,3813.9,3813.8,9.80324]
[1761935702859,0.81123,3813.9,3813.8,9.331]
[1761935703060,0.4723,3813.4,3813.0,3.2078]
[1761935703264,0.67248,3813.5,3813.1,9.326]
[1761935703563,0.67248,3813.5,3813.4,0.47229]
[1761935703758,0.4723,3813.4,3813.3,0.4723]
[1761935703964,0.2002,3813.5,3813.3,9.327]
[1761935704363,0.47235,3812.9,3812.8,0.00271068]
[1761935704565,0.47235,3812.9,3812.8,9.80207068]
[1761935704866,0.47235,3812.9,3812.8,9.32971068]
[1761935705064,0.47235,3812.9,3812.8,9.80207068]
[1761935705368,0.47235,3812.9,3812.8,9.32971068]
[1761935705761,0.47235,3812.9,3812.8,0.00271068]
[1761935705962,0.2002,3813.0,3812.8,9.32971068]
[1761935706161,0.2002,3813.0,3812.9,0.47235]
[1761935706861,0.47235,3812.9,3812.8,9.80207068]
[1761935707261,0.47235,3812.9,3812.8,9.32971068]
[1761935707463,0.81135,3812.9,3812.8,9.32971068]
[1761935707970,0.47235,3812.9,3812.8,9.32971068]
[1761935708169,0.67248,3813.5,3813.4,0.47229]
[1761935708469,0.47231,3813.3,3813.2,0.47231]
[1761935708658,0.47231,3813.3,3813.2,9.80731]
[1761935709262,0.47227,3813.6,3813.5,0.47228]
[1761935709464,0.47227,3813.6,3813.5,9.333]
[1761935709659,0.81127,3813.6,3813.5,9.333]
[1761935709859,1.40228749,3813.6,3813.5,9.333]
[1761935710465,0.47235,3812.9,3812.7,3.2078]
[1761935710669,0.78395,3812.9,3812.8,9.33871068]
[1761935710862,1.37494535,3812.9,3812.8,9.33871068]
[1761935711064,4.58274535,3812.9,3812.8,0.00271068]
[1761935714170,0.187,3812.0,3811.9,3.2078]
[1761935714473,0.3116,3811.4,3811.3,0.20947454]
[1761935714772,0.65953,3811.5,3811.1,3.2078]
[1761935714773,0.3116,3811.2,3811.1,3.2078]
[1761935714973,0.65959,3811.0,3810.8,9.33]
[1761935715164,0.3116,3810.9,3810.8,9.33]
[1761935715472,0.187,3811.5,3810.8,10.51402834]
[1761935715674,0.187,3811.5,3811.3,0.47254]
[1761935716066,0.187,3811.5,3811.4,9.35]
[1761935716673,0.187,3812.5,3811.9,0.47248]
[1761935716864,0.18935057,3812.0,3811.9,0.47248]
[1761935717060,0.18935057,3812.0,3811.7,0.47249]
[1761935717264,0.18935057,3812.0,3811.4,9.35]
[1761935717265,0.18935057,3812.0,3811.8,0.47249]
[1761935717977,0.18935057,3812.0,3811.9,9.35]
[1761935719375,0.00235057,3812.0,3811.9,9.35]
[1761935719677,0.187,3812.5,3811.9,17.35]
[1761935719971,0.187,3812.5,3812.3,0.47243]
[1761935720177,0.187,3812.5,3812.4,9.345]
[1761935720674,0.00286668,3812.5,3812.4,9.345]
[1761935720877,0.00286668,3812.5,3812.4,12.5528]
[1761935721276,0.00286668,3812.5,3812.4,9.345]
[1761935721473,0.00286668,3812.5,3812.3,9.342]
[1761935721474,0.47736668,3812.5,3812.3,9.342]
[1761935721674,0.3066,3812.4,3812.3,9.342]
[1761935722468,3.5144,3812.4,3812.3,9.342]
[1761935723181,3.2078,3812.4,3812.3,9.342]
[1761935723381,3.5144,3812.4,3812.3,9.342]
[1761935723688,3.2078,3812.4,3812.3,9.342]
[1761935724086,3.5144,3812.4,3812.3,9.342]
[1761935724274,0.4745,3812.0,3811.9,9.36]
[1761935724575,0.1679,3811.5,3811.3,9.83855]
[1761935724875,0.3066,3811.4,3811.3,9.366]
[1761935725270,0.1679,3811.5,3811.3,9.83855]
[1761935725472,0.3066,3811.4,3811.3,9.366]
[1761935725778,0.1679,3811.5,3811.3,9.366]
[1761935726081,0.3066,3811.4,3811.3,9.366]
[1761935726878,0.1679,3811.5,3811.3,9.366]
[1761935727376,0.3066,3811.4,3811.3,9.366]
[1761935728280,0.1679,3811.0,3810.8,0.00249834]
[1761935728474,0.3066,3810.9,3810.8,0.00249834]
[1761935730079,0.3066,3810.9,3809.7,0.02624913]
[1761935730080,0.1679,3810.0,3809.9,0.47272]
[1761935730274,0.1679,3810.0,3809.7,9.42024913]
[1761935730682,0.1679,3810.0,3809.8,0.47274]
[1761935731083,0.1679,3810.0,3809.8,0.00229934]
[1761935731278,0.1679,3810.0,3809.8,0.47503934]
[1761935731481,3.2078,3810.3,3810.2,0.47269]
[1761935731683,0.1679,3810.5,3810.4,0.47266]
[1761935731881,3.3757,3811.0,3810.9,0.4726]
[1761935732276,0.1679,3810.5,3810.4,0.47266]
[1761935732578,0.1679,3810.5,3810.4,9.86466]
[1761935733186,0.1679,3811.0,3810.9,0.4726]
[1761935733678,0.1679,3810.5,3810.4,0.47266]
[1761935733889,0.1679,3811.0,3810.9,0.4726]
[1761935734185,0.1679,3811.0,3810.9,9.8606]
[1761935734586,0.1679,3811.5,3810.9,9.388]
[1761935734777,0.1679,3811.5,3810.9,9.8606]
[1761935734778,0.1679,3811.0,3810.9,9.8606]
[1761935735378,0.64049,3811.0,3810.9,9.8606]
[1761935735685,0.1679,3810.5,3810.1,0.47269]
[1761935735881,0.47267,3810.4,3810.2,9.88669]
[1761935736080,0.1679,3810.5,3810.2,9.88669]
[1761935736081,0.47267,3810.3,3810.2,9.88669]
[1761935736488,0.4727,3810.1,3810.0,3.2078]
[1761935736684,0.47269,3810.3,3810.1,0.47269]
[1761935736891,0.47269,3810.2,3810.1,0.47269]
[1761935737187,0.4727,3810.1,3810.0,3.2078]
[1761935737387,0.4727,3810.1,3810.0,12.6198]
[1761935737583,0.1679,3810.5,3810.0,12.6198]
[1761935737786,0.47269,3810.2,3810.1,0.4727]
[1761935737985,0.47267,3810.4,3810.2,0.47268]
[1761935738184,0.1679,3810.5,3810.4,0.47266]
[1761935740584,0.1679,3810.5,3810.4,3.68046]
[1761935740785,0.1679,3811.5,3810.9,0.4726]
[1761935741088,0.47255,3811.4,3811.3,0.47255]
[1761935741276,0.1679,3811.5,3811.4,0.47254]
[1761935742589,0.64036,3812.0,3811.9,0.47248]
[1761935742788,0.47248,3811.9,3811.8,9.404]
[1761935743093,0.75418,3811.9,3811.8,9.404]
[1761935743894,0.47255,3811.3,3811.2,0.47256]
[1761935744085,0.47255,3811.3,3811.2,9.409]
[1761935744287,0.75425,3811.3,3811.2,9.409]
[1761935745393,0.1722,3811.5,3811.2,9.409]
[1761935745590,0.1722,3811.5,3811.2,9.88156]
[1761935745786,0.47255,3811.3,3811.2,9.409]
[1761935746093,0.1722,3811.5,3811.2,9.409]
[1761935746391,0.64473,3811.5,3811.4,0.47254]
[1761935746689,0.1722,3811.5,3811.4,0.47254]
[1761935748193,0.1722,3811.5,3811.2,12.6168]
[1761935748388,0.64473,3811.5,3811.4,0.47254]
[1761935748797,0.47255,3811.3,3811.2,12.6168]
[1761935748997,0.75425,3811.3,3811.2,9.409]
[1761935749590,0.1722,3811.5,3811.4,0.47254]
[1761935750696,0.47248,3811.9,3811.8,0.47248]
[1761935750998,0.47248,3811.9,3811.8,9.87448]
[1761935751595,0.64036,3812.0,3811.9,0.47248]
[1761935751898,0.1679,3812.0,3811.9,0.47248]
[1761935752087,3.2078,3812.8,3811.9,0.47248]
[1761935752290,3.68018,3812.8,3812.4,0.47241]
[1761935752493,0.47238,3812.7,3812.4,9.87041]
[1761935752691,0.47239,3812.6,3812.4,9.87041]
[1761935752891,3.2078,3812.8,3812.4,9.87041]
[1761935753092,3.68018,3812.8,3812.4,9.87041]
[1761935753297,0.00286668,3812.5,3812.4,9.87041]
[1761935753696,0.1722,3813.0,3812.9,0.47235]
[1761935753897,0.1722,3813.5,3813.2,0.47231]
[1761935754309,0.47232,3813.2,3813.0,0.47233]
[1761935754512,0.1722,3813.5,3812.9,9.86935]
[1761935754513,0.1722,3813.0,3812.9,9.86935]
[1761935754713,0.17560628,3813.0,3812.9,9.87167042]
[1761935754904,0.17560628,3813.0,3812.9,9.39932042]
[1761935756714,0.45730628,3813.0,3812.9,9.39932042]
[1761935756915,0.17560628,3813.0,3812.9,9.39932042]
[1761935757710,0.45730628,3813.0,3812.9,9.39932042]
[1761935758317,0.92964628,3813.0,3812.9,9.39932042]
[1761935759321,0.92964628,3813.0,3812.9,0.00232042]
[1761935760808,0.1722,3812.0,3811.7,3.2078]
[1761935761014,0.1722,3812.0,3811.9,0.47248]
[1761935762009,0.1722,3812.0,3811.9,0.47460906]
[1761935762621,0.6446,3812.5,3811.9,0.47460906]
[1761935762622,0.1722,3812.5,3812.4,0.47241]
[1761935762816,0.64449,3813.5,3812.9,0.47235]
[1761935763012,4.13744628,3813.0,3812.9,9.378]
[1761935763220,0.75405,3812.9,3812.8,9.384]
[1761935764120,0.75405,3812.9,3812.0,3.2078]
[1761935764121,0.47245,3812.1,3812.0,3.68026]
[1761935764320,0.47245,3812.1,3812.0,13.06626]
[1761935764517,0.47245,3812.1,3812.0,12.5938]
[1761935764722,0.75415,3812.1,3812.0,12.5938]
[1761935764922,0.75415,3812.1,3812.0,13.06626]
[1761935765319,0.75415,3812.1,3812.0,12.5938]
[1761935766018,0.75415,3812.1,3812.0,13.06626]
[1761935766324,0.2817,3812.1,3812.0,13.06626]
[1761935766512,0.75415,3812.1,3812.0,12.5938]
[1761935766717,0.75415,3812.1,3812.0,13.06626]
[1761935767412,0.75415,3812.1,3812.0,12.5938]
[1761935768025,0.2817,3812.1,3812.0,13.06626]
[1761935768214,0.47243,3812.3,3812.1,0.47244]
[1761935768416,0.47245,3812.1,3812.0,12.5938]
[1761935768622,0.47245,3812.1,3812.0,13.06626]
[1761935770128,0.47245,3812.1,3812.0,12.5938]
[1761935770328,0.75415,3812.1,3812.0,12.5938]
[1761935770625,0.71875,3812.1,3812.0,13.06626]
[1761935771220,0.47245,3812.1,3812.0,13.06626]
[1761935772230,0.71875,3812.1,3812.0,12.5938]
[1761935772728,0.71875,3812.1,3812.0,13.06626]
[1761935772930,0.71873,3812.3,3812.2,0.47244]
[1761935773531,0.1722,3812.5,3812.4,0.47241]
[1761935773725,0.1722,3812.5,3812.4,9.83941]
[1761935773925,0.47233,3813.1,3812.9,0.47235]
[1761935774122,0.64794628,3813.0,3812.9,9.83635]
[1761935774729,0.17560628,3813.0,3812.9,9.83635]
[1761935775426,0.00340628,3813.0,3812.9,13.04415]
[1761935775632,0.15790628,3813.0,3812.9,13.04415]
[1761935776026,0.1722,3813.5,3813.4,0.47229]
[1761935776220,0.1722,3813.5,3813.4,9.83229]
[1761935776420,0.1722,3813.5,3813.4,9.36]
[1761935777324,0.17548339,3813.5,3813.4,9.36]
[1761935777830,0.00328339,3813.5,3813.4,9.36]
[1761935778232,0.14588339,3813.5,3813.4,9.36]
[1761935780035,0.1426,3813.0,3812.8,44.0078]
[1761935780228,0.1426,3813.0,3812.9,9.82035]
[1761935780933,0.14588339,3813.5,3813.4,0.47229]
[1761935781230,0.14588339,3813.5,3813.4,9.81929]
[1761935781440,3.38,3814.0,3813.6,0.47226]
[1761935781629,3.38,3814.0,3813.7,9.345]
[1761935781829,3.38,3814.0,3813.8,0.47223]
[1761935782025,0.1426,3815.0,3814.0,1.18052]
[1761935782226,0.1426,3815.0,3814.8,3.67991]
[1761935782437,0.1426,3815.0,3814.9,9.348]
[1761935782630,0.14539437,3815.0,3814.9,9.348]
[1761935783833,0.00279437,3815.0,3814.9,9.348]
[1761935784041,0.14539437,3815.0,3814.9,9.348]
[1761935785038,0.00279437,3815.0,3814.9,9.348]
[1761935785238,0.1426,3815.5,3814.9,9.348]
[1761935785434,0.1426,3815.5,3815.2,3.2078]
[1761935785732,0.1426,3815.5,3815.3,9.344]
[1761935786340,0.14510814,3815.5,3815.3,9.81605]
[1761935787135,0.00250814,3815.5,3815.3,9.81605]
[1761935787330,0.1426,3816.0,3815.3,9.344]
[1761935787535,0.1426,3816.0,3815.8,3.67979]
[1761935787850,0.1426,3816.0,3815.9,9.338]
[1761935788433,0.14461601,3816.0,3815.9,9.338]
[1761935791034,0.37541601,3816.0,3815.9,9.338]
[1761935791540,0.1426,3815.5,3815.4,3.2078]
[1761935791742,0.1426,3815.5,3815.4,12.5358]
[1761935791930,0.1426,3815.5,3815.4,9.328]
[1761935792741,0.3734,3815.5,3815.4,9.328]
[1761935794142,0.1426,3815.5,3815.4,9.328]
[1761935794444,0.3734,3815.5,3815.4,9.328]
[1761935795736,0.2308,3814.9,3814.8,0.0030632]
[1761935795937,0.2308,3814.9,3814.8,9.3260632]
[1761935796535,0.1426,3815.0,3814.8,9.3260632]
[1761935797142,0.1426,3815.0,3814.8,9.7981732]
[1761935797535,0.1426,3815.0,3814.8,9.3260632]
[1761935797733,0.2308,3814.9,3814.8,9.3260632]
[1761935799345,0.1426,3815.0,3814.8,9.3260632]
[1761935800344,0.1426,3815.0,3814.8,9.7981832]
[1761935800740,0.1426,3815.0,3814.9,0.4721]
[1761935801045,0.1426,3815.0,3814.8,9.3260632]
[1761935801446,0.1426,3815.0,3814.9,0.4721]
[1761935802641,0.1426,3815.0,3814.8,9.7981832]
[1761935802850,0.1426,3815.0,3814.8,9.3260632]
[1761935803048,0.1426,3815.0,3814.9,0.4721]
[1761935803250,0.1426,3815.0,3814.8,9.3260632]
[1761935803650,0.1426,3815.0,3814.9,0.4721]
[1761935803852,0.1426,3815.0,3814.8,9.3260632]
[1761935804551,3.4386,3814.9,3814.8,0.0030632]
[1761935805360,0.2326,3814.1,3814.0,0.42007559]
[1761935805547,3.4404,3814.1,3814.0,0.42007559]
[1761935805747,4.02619119,3814.1,3814.0,0.42007559]
[1761935806248,4.02619119,3814.1,3814.0,0.42227332]
[1761935806548,3.4404,3814.1,3814.0,0.42227332]
[1761935806749,4.02625717,3814.1,3814.0,0.42227332]
[1761935808755,3.79365717,3814.1,3814.0,0.42227332]
[1761935808956,0.1332,3814.5,3814.4,0.47217]
[1761935810159,0.1332,3814.5,3814.1,0.4722]
[1761935810364,3.341,3814.5,3814.0,4.10229332]
[1761935810555,3.341,3814.5,3814.0,3.63007332]
[1761935810761,3.341,3814.5,3814.1,9.329]
[1761935811455,3.341,3814.5,3814.0,9.75127332]
[1761935811656,3.341,3814.5,3814.1,0.4722]
[1761935811857,3.341,3814.5,3814.2,0.47219]
[1761935812061,3.341,3814.5,3814.0,9.75127332]
[1761935817266,0.1332,3814.5,3814.0,10.22349332]
[1761935817454,0.1332,3814.5,3814.0,9.75127332]
[1761935817958,0.2326,3814.2,3814.1,9.326]
[1761935818565,3.2078,3814.4,3814.1,9.7982]
[1761935819767,3.2078,3814.4,3814.1,9.326]
[1761935820065,0.2326,3814.2,3814.1,9.326]
[1761935821065,0.2326,3814.1,3814.0,0.42227332]
[1761935821262,0.1332,3813.5,3813.4,9.32]
[1761935821467,0.1332,3813.5,3813.4,9.79229]
[1761935821660,0.1332,3813.5,3813.4,9.32]
[1761935822061,0.1332,3813.5,3813.4,9.79229]
[1761935822262,0.1332,3813.5,3813.4,9.32]
[1761935822462,0.1332,3813.5,3813.4,9.79453232]
[1761935823156,0.1332,3814.0,3813.7,0.47225]
[1761935823359,0.1332,3814.0,3813.4,9.32224232]
[1761935823559,0.1332,3814.0,3813.8,0.47224]
[1761935823758,0.1332,3814.0,3813.9,9.318]
[1761935824066,0.1332,3814.0,3813.9,9.79023]
[1761935826168,0.1332,3814.0,3813.9,9.318]
[1761935826666,0.3658,3814.0,3813.9,9.318]
[1761935828573,0.94976449,3814.0,3813.9,9.318]
[1761935828776,0.71716449,3814.0,3813.9,9.318]
[1761935828963,0.94976449,3814.0,3813.9,9.318]
[1761935829669,0.94976449,3814.0,3813.5,0.47228]
[1761935829871,3.2078,3813.7,3813.5,0.47228]
[1761935830070,0.1332,3813.5,3813.4,9.79253232]
[1761935830670,0.1332,3813.5,3813.4,9.32024232]
[1761935830974,0.3658,3813.5,3813.4,9.32024232]
[1761935831961,0.3658,3813.5,3813.4,0.00224232]
[1761935832776,0.94929359,3813.5,3813.4,0.00224232]
[1761935835080,0.2335,3812.8,3811.9,3.2078]
[1761935835274,0.1393,3812.0,3811.9,3.2078]
[1761935835676,0.3728,3812.0,3811.9,3.2078]